[Event "British Rapidplay Championship 2023"]
[Site "Mercure Bradford, Bankfield Hotel"]
[Date "2023.04.15"]
[Round "2.21"]
[White "McCarthy, Damian M"]
[Black "Coles, Steven F"]
[Result "1/2-1/2"]
[TimeControl "15 minutes plus 10 seconds per move"]
[WhiteElo "1860"]
[BlackElo "1969"]

1. e4 {[%clk 00:15:19]} c6 {[%clk 00:15:19]} 2. d4 {[%clk 00:15:25]} {[%emt
00:00:03]} d5 {[%clk 00:15:27]} 3. Nd2 {[%clk 00:15:29]} {[%emt 00:00:06]} dxe4
{[%clk 00:15:35]} {[%emt 00:00:02]} 4. Nxe4 {[%clk 00:15:37]} {[%emt 00:00:02]}
Nf6 {[%clk 00:15:40]} {[%emt 00:00:05]} 5. Nxf6+ {[%clk 00:15:42]} {[%emt
00:00:05]} exf6 {[%clk 00:15:49]} {[%emt 00:00:01]} 6. c3 {[%clk 00:15:48]}
{[%emt 00:00:04]} Bd6 {[%clk 00:15:57]} {[%emt 00:00:03]} 7. Bd3 {[%clk
00:15:54]} {[%emt 00:00:04]} O-O {[%clk 00:16:02]} {[%emt 00:00:04]} 8. Qc2
{[%clk 00:15:59]} {[%emt 00:00:04]} Re8+ {[%clk 00:16:10]} {[%emt 00:00:03]} 9.
Ne2 {[%clk 00:16:07]} {[%emt 00:00:02]} h5 {[%clk 00:16:15]} {[%emt 00:00:05]}
10. Be3 {[%clk 00:16:10]} {[%emt 00:00:07]} Nd7 {[%clk 00:16:10]} {[%emt
00:00:15]} 11. O-O-O {[%clk 00:16:11]} {[%emt 00:00:47]} Nf8 {[%clk 00:15:46]}
12. Kb1 {[%clk 00:16:08]} {[%emt 00:00:09]} Be6 {[%clk 00:15:37]} {[%emt
00:00:18]} 13. c4 {[%clk 00:16:00]} {[%emt 00:00:18]} Qa5 {[%clk 00:15:26]}
{[%emt 00:00:23]} 14. Nc3 {[%clk 00:15:45]} {[%emt 00:00:24]} Rab8 {[%clk
00:14:56]} {[%emt 00:00:40]} 15. d5 {[%clk 00:12:45]} {[%emt 00:03:10]} cxd5
{[%clk 00:14:28]} {[%emt 00:00:38]} 16. Nxd5 {[%clk 00:12:33]} {[%emt
00:00:22]} Be5 {[%clk 00:13:15]} {[%emt 00:01:22]} 17. Nf4 {[%clk 00:10:53]}
{[%emt 00:01:51]} Bxf4 {[%clk 00:12:16]} {[%emt 00:01:09]} 18. Bxf4 {[%clk
00:10:57]} {[%emt 00:00:06]} Rbc8 {[%clk 00:12:04]} {[%emt 00:00:22]} 19. Qb3
{[%clk 00:10:07]} {[%emt 00:01:01]} Nd7 {[%clk 00:11:00]} {[%emt 00:01:13]} 20.
Qb5 {[%clk 00:07:35]} {[%emt 00:02:42]} Qxb5 {[%clk 00:11:02]} {[%emt
00:00:08]} 21. cxb5 {[%clk 00:07:44]} {[%emt 00:00:02]} Nc5 {[%clk 00:10:42]}
{[%emt 00:00:29]} 22. Bc2 {[%clk 00:06:24]} {[%emt 00:01:30]} Bc4 {[%clk
00:09:49]} {[%emt 00:01:03]} 23. Be3 {[%clk 00:05:54]} {[%emt 00:00:40]} Bxb5
{[%clk 00:09:26]} {[%emt 00:00:34]} 24. Rd5 {[%clk 00:05:42]} {[%emt 00:00:21]}
Re5 {[%clk 00:09:02]} {[%emt 00:00:34]} 25. Rhd1 {[%clk 00:05:44]} {[%emt
00:00:08]} b6 {[%clk 00:08:33]} {[%emt 00:00:39]} 26. Rxe5 {[%clk 00:04:11]}
{[%emt 00:01:44]} fxe5 {[%clk 00:08:40]} {[%emt 00:00:03]} 27. Rd5 {[%clk
00:04:16]} {[%emt 00:00:05]} Bc6 {[%clk 00:06:33]} {[%emt 00:02:17]} 28. Rxe5
{[%clk 00:04:07]} {[%emt 00:00:19]} Bxg2 {[%clk 00:06:29]} {[%emt 00:00:13]} 29.
Rxh5 {[%clk 00:03:30]} {[%emt 00:00:47]} Be4 {[%clk 00:05:59]} {[%emt
00:00:40]} 30. Bxe4 {[%clk 00:02:50]} {[%emt 00:00:51]} Nxe4 {[%clk 00:06:07]}
{[%emt 00:00:02]} 31. Re5 {[%clk 00:02:49]} {[%emt 00:00:10]} Nf6 {[%clk
00:05:29]} {[%emt 00:00:47]} 32. Re7 {[%clk 00:02:31]} {[%emt 00:00:29]} Nd5
{[%clk 00:03:56]} {[%emt 00:01:43]} 33. Rxa7 {[%clk 00:02:30]} {[%emt
00:00:11]} Nxe3 {[%clk 00:03:30]} {[%emt 00:00:37]} 34. fxe3 {[%clk 00:02:35]}
{[%emt 00:00:04]} Re8 {[%clk 00:03:14]} {[%emt 00:00:26]} 35. Ra3 {[%clk
00:02:40]} {[%emt 00:00:06]} Re4 {[%clk 00:03:06]} {[%emt 00:00:16]} 36. Rd3
{[%clk 00:02:24]} {[%emt 00:00:27]} Rh4 {[%clk 00:02:59]} {[%emt 00:00:18]} 37.
Rd2 {[%clk 00:02:27]} {[%emt 00:00:07]} Rh3 {[%clk 00:03:07]} {[%emt 00:00:02]}
38. Re2 {[%clk 00:02:35]} {[%emt 00:00:01]} Kh7 {[%clk 00:03:12]} {[%emt
00:00:05]} 39. Kc2 {[%clk 00:02:33]} {[%emt 00:00:12]} Kg6 {[%clk 00:03:18]}
{[%emt 00:00:03]} 40. Kd3 {[%clk 00:02:11]} {[%emt 00:00:33]} Kf5 {[%clk
00:03:24]} {[%emt 00:00:03]} 41. Rf2+ {[%clk 00:02:13]} {[%emt 00:00:10]} Ke6
{[%clk 00:03:30]} {[%emt 00:00:03]} 42. Kd4 {[%clk 00:02:06]} {[%emt 00:00:18]}
f5 {[%clk 00:03:16]} {[%emt 00:00:24]} 43. Rg2 {[%clk 00:01:50]} {[%emt
00:00:26]} Rh4+ {[%clk 00:03:08]} {[%emt 00:00:18]} 44. Kd3 {[%clk 00:01:49]}
{[%emt 00:00:10]} Kf6 {[%clk 00:03:15]} {[%emt 00:00:03]} 45. b3 {[%clk
00:01:17]} {[%emt 00:00:42]} g5 {[%clk 00:03:22]} {[%emt 00:00:04]} 46. Rc2
{[%clk 00:01:07]} {[%emt 00:00:19]} g4 {[%clk 00:03:20]} {[%emt 00:00:11]} 47.
a4 {[%clk 00:01:11]} {[%emt 00:00:08]} Kg5 {[%clk 00:02:50]} {[%emt 00:00:39]}
48. Rb2 {[%clk 00:01:02]} {[%emt 00:00:20]} Rh3 {[%clk 00:02:48]} {[%emt
00:00:11]} 49. Kd4 {[%clk 00:00:57]} {[%emt 00:00:14]} Rh6 {[%clk 00:02:31]}
{[%emt 00:00:27]} 50. b4 {[%clk 00:00:55]} {[%emt 00:00:13]} Re6 {[%clk
00:02:34]} {[%emt 00:00:07]} 51. a5 {[%clk 00:00:49]} {[%emt 00:00:16]} bxa5
{[%clk 00:02:37]} {[%emt 00:00:07]} 52. bxa5 {[%clk 00:00:57]} {[%emt
00:00:03]} Re4+ {[%clk 00:02:42]} {[%emt 00:00:05]} 53. Kd3 {[%clk 00:00:55]}
{[%emt 00:00:10]} Ra4 {[%clk 00:02:49]} {[%emt 00:00:04]} 54. Rb5 {[%clk
00:00:59]} {[%emt 00:00:06]} Kf6 {[%clk 00:02:39]} {[%emt 00:00:20]} 55. Rb6+
{[%clk 00:01:03]} {[%emt 00:00:06]} Ke5 {[%clk 00:02:39]} {[%emt 00:00:10]} 56.
a6 {[%clk 00:01:01]} {[%emt 00:00:13]} Ra3+ {[%clk 00:02:42]} {[%emt 00:00:06]}
57. Kd2 {[%clk 00:00:28]} {[%emt 00:00:43]} Ra2+ {[%clk 00:02:42]} {[%emt
00:00:11]} 58. Kd3 {[%clk 00:00:32]} {[%emt 00:00:06]} Ra3+ {[%clk 00:02:39]}
{[%emt 00:00:13]} 59. Kd2 {[%clk 00:00:20]} {[%emt 00:00:21]} Ra2+ {[%clk
00:02:47]} {[%emt 00:00:02]} 60. Kc3 {[%clk 00:00:19]} {[%emt 00:00:11]} Ke4
{[%clk 00:02:49]} {[%emt 00:00:08]} 61. Re6+ {[%clk 00:00:25]} {[%emt
00:00:04]} Kf3 {[%clk 00:02:56]} {[%emt 00:00:03]} 62. Kb4 {[%clk 00:00:18]}
{[%emt 00:00:17]} Rxh2 {[%clk 00:03:00]} {[%emt 00:00:06]} 63. Re5 {[%clk
00:00:14]} {[%emt 00:00:15]} Ra2 {[%clk 00:03:02]} {[%emt 00:00:08]} 64. Kb5
{[%clk 00:00:22]} {[%emt 00:00:02]} g3 {[%clk 00:03:06]} {[%emt 00:00:06]} 65.
Rxf5+ {[%clk 00:00:30]} {[%emt 00:00:02]} Kxe3 {[%clk 00:03:13]} {[%emt
00:00:02]} 66. Rg5 {[%clk 00:00:34]} {[%emt 00:00:06]} Kf2 {[%clk 00:03:17]}
{[%emt 00:00:07]} 67. Kb6 {[%clk 00:00:34]} {[%emt 00:00:10]} 1/2-1/2

[Event "British Rapidplay Championship 2023"]
[Site "Mercure Bradford, Bankfield Hotel"]
[Date "2023.04.15"]
[Round "2.22"]
[White "Walton, Alan J"]
[Black "Gopakumar, Siddharth"]
[Result "1-0"]
[TimeControl "15 minutes plus 10 seconds per move"]
[WhiteElo "2105"]
[BlackElo "1735"]

1. d4 {[%clk 00:15:17]} {[%emt 00:00:02]} d5 {[%clk 00:15:19]} {[%emt
00:00:02]} 2. c4 {[%clk 00:15:25]} {[%emt 00:00:02]} c6 {[%clk 00:15:26]}
{[%emt 00:00:02]} 3. Nc3 {[%clk 00:15:31]} {[%emt 00:00:04]} Nf6 {[%clk
00:15:34]} {[%emt 00:00:02]} 4. Nf3 {[%clk 00:15:39]} {[%emt 00:00:03]} dxc4
{[%clk 00:15:42]} {[%emt 00:00:02]} 5. a4 {[%clk 00:15:41]} {[%emt 00:00:08]}
Bf5 {[%clk 00:15:50]} {[%emt 00:00:02]} 6. Ne5 {[%clk 00:15:46]} {[%emt
00:00:05]} Nbd7 {[%clk 00:15:55]} {[%emt 00:00:05]} 7. Nxc4 {[%clk 00:15:53]}
{[%emt 00:00:02]} Qc7 {[%clk 00:16:04]} {[%emt 00:00:02]} 8. g3 {[%clk
00:15:50]} {[%emt 00:00:12]} e5 {[%clk 00:16:12]} {[%emt 00:00:02]} 9. dxe5
{[%clk 00:15:31]} {[%emt 00:00:29]} Nxe5 {[%clk 00:16:21]} {[%emt 00:00:38]} 10.
Bf4 {[%clk 00:15:26]} Nfd7 {[%clk 00:16:29]} 11. Bg2 {[%clk 00:15:20]} f6
{[%clk 00:16:36]} 12. O-O {[%clk 00:14:40]} {[%emt 00:00:49]} g5 {[%clk
00:16:43]} {[%emt 00:00:03]} 13. Nxe5 {[%clk 00:14:35]} {[%emt 00:00:16]} gxf4
{[%clk 00:16:41]} {[%emt 00:00:12]} 14. Nxd7 {[%clk 00:14:11]} {[%emt
00:00:33]} Qxd7 {[%clk 00:16:35]} {[%emt 00:00:17]} 15. Ne4 {[%clk 00:13:49]}
{[%emt 00:00:33]} Qe6 {[%clk 00:12:09]} {[%emt 00:04:35]} 16. Qd4 {[%clk
00:13:12]} {[%emt 00:00:47]} Bxe4 {[%clk 00:11:21]} {[%emt 00:00:58]} 17. Qxe4
{[%clk 00:13:03]} {[%emt 00:00:19]} Qxe4 {[%clk 00:11:04]} {[%emt 00:00:27]} 18.
Bxe4 {[%clk 00:13:11]} {[%emt 00:00:01]} Bd6 {[%clk 00:10:54]} {[%emt
00:00:21]} 19. Kg2 {[%clk 00:13:13]} {[%emt 00:00:08]} O-O-O {[%clk 00:10:11]}
{[%emt 00:00:53]} 20. Rad1 {[%clk 00:13:07]} {[%emt 00:00:16]} h5 {[%clk
00:09:26]} {[%emt 00:00:55]} 21. Kf3 {[%clk 00:12:50]} {[%emt 00:00:27]} fxg3
{[%clk 00:09:03]} {[%emt 00:00:32]} 22. hxg3 {[%clk 00:12:57]} {[%emt
00:00:01]} Be5 {[%clk 00:09:02]} {[%emt 00:00:12]} 23. b3 {[%clk 00:12:49]}
{[%emt 00:00:19]} h4 {[%clk 00:07:48]} {[%emt 00:01:24]} 24. Rxd8+ {[%clk
00:12:28]} {[%emt 00:00:32]} Kxd8 {[%clk 00:07:50]} {[%emt 00:00:07]} 25. Rh1
{[%clk 00:12:29]} {[%emt 00:00:08]} f5 {[%clk 00:07:14]} {[%emt 00:00:47]} 26.
Bxf5 {[%clk 00:12:29]} {[%emt 00:00:10]} hxg3 {[%clk 00:07:22]} {[%emt
00:00:02]} 27. Rxh8+ {[%clk 00:12:37]} {[%emt 00:00:02]} Bxh8 {[%clk 00:07:31]}
{[%emt 00:00:02]} 28. Kxg3 {[%clk 00:12:43]} {[%emt 00:00:03]} b5 {[%clk
00:07:38]} {[%emt 00:00:03]} 29. axb5 {[%clk 00:12:40]} {[%emt 00:00:13]} cxb5
{[%clk 00:07:47]} {[%emt 00:00:02]} 30. Bd3 {[%clk 00:12:47]} {[%emt 00:00:02]}
b4 {[%clk 00:07:45]} {[%emt 00:00:12]} 31. f4 {[%clk 00:12:52]} {[%emt
00:00:04]} Ke7 {[%clk 00:07:43]} {[%emt 00:00:12]} 32. e4 {[%clk 00:12:57]}
{[%emt 00:00:04]} Bc3 {[%clk 00:07:26]} {[%emt 00:00:27]} 33. Kg4 {[%clk
00:13:04]} {[%emt 00:00:05]} Kf6 {[%clk 00:07:21]} {[%emt 00:00:15]} 34. Bc4
{[%clk 00:12:51]} {[%emt 00:00:23]} Bd2 {[%clk 00:05:22]} {[%emt 00:02:08]} 35.
e5+ {[%clk 00:12:56]} {[%emt 00:00:04]} Ke7 {[%clk 00:05:19]} {[%emt 00:00:14]}
36. Kf5 {[%clk 00:13:05]} Bc1 {[%clk 00:05:22]} {[%emt 00:00:08]} 37. Ke4
{[%clk 00:13:10]} {[%emt 00:00:04]} a5 {[%clk 00:05:13]} {[%emt 00:00:19]} 38.
f5 {[%clk 00:13:17]} {[%emt 00:00:04]} Bb2 {[%clk 00:05:02]} {[%emt 00:00:21]}
39. f6+ {[%clk 00:13:22]} {[%emt 00:00:05]} Ke8 {[%clk 00:05:09]} {[%emt
00:00:02]} 40. Kf5 {[%clk 00:13:25]} {[%emt 00:00:06]} Kf8 {[%clk 00:05:17]}
{[%emt 00:00:02]} 41. e6 {[%clk 00:13:27]} {[%emt 00:00:09]} 1-0

[Event "British Rapidplay Championship 2023"]
[Site "Mercure Bradford, Bankfield Hotel"]
[Date "2023.04.15"]
[Round "2.23"]
[White "Buckley, Colm"]
[Black "Edwards-Wright, Miles D"]
[Result "0-1"]
[TimeControl "15 minutes plus 10 seconds per move"]
[WhiteElo "1870"]
[BlackElo "1937"]

1. d4 {[%clk 00:15:18]} {[%emt 00:00:02]} g6 {[%clk 00:15:20]} 2. Nf3 {[%clk
00:15:16]} {[%emt 00:00:11]} Bg7 {[%clk 00:15:29]} {[%emt 00:00:01]} 3. c4
{[%clk 00:15:24]} {[%emt 00:00:02]} d6 {[%clk 00:15:35]} {[%emt 00:00:04]} 4.
Nc3 {[%clk 00:15:32]} {[%emt 00:00:02]} Bg4 {[%clk 00:15:22]} {[%emt 00:00:22]}
5. e3 {[%clk 00:14:29]} {[%emt 00:01:19]} c6 {[%clk 00:15:07]} {[%emt
00:00:20]} 6. h3 {[%clk 00:14:12]} {[%emt 00:00:27]} Bxf3 {[%clk 00:15:09]}
{[%emt 00:00:08]} 7. Qxf3 {[%clk 00:14:15]} {[%emt 00:00:07]} Nd7 {[%clk
00:15:16]} {[%emt 00:00:03]} 8. Bd3 {[%clk 00:13:22]} {[%emt 00:01:02]} Qc7
{[%clk 00:15:22]} {[%emt 00:00:05]} 9. Bd2 {[%clk 00:13:03]} {[%emt 00:00:28]}
a5 {[%clk 00:14:59]} {[%emt 00:00:34]} 10. O-O {[%clk 00:12:37]} {[%emt
00:00:35]} e5 {[%clk 00:14:45]} {[%emt 00:00:24]} 11. d5 {[%clk 00:11:53]}
{[%emt 00:00:54]} Ne7 {[%clk 00:14:45]} {[%emt 00:00:11]} 12. dxc6 {[%clk
00:10:47]} {[%emt 00:01:16]} bxc6 {[%clk 00:14:26]} {[%emt 00:00:29]} 13. e4
{[%clk 00:10:39]} {[%emt 00:00:17]} O-O {[%clk 00:14:29]} {[%emt 00:00:08]} 14.
Rac1 {[%clk 00:09:52]} {[%emt 00:00:58]} Nc5 {[%clk 00:14:31]} {[%emt
00:00:07]} 15. b3 {[%clk 00:09:18]} {[%emt 00:00:44]} Ne6 {[%clk 00:13:56]}
{[%emt 00:00:46]} 16. Be3 {[%clk 00:08:19]} {[%emt 00:01:09]} f5 {[%clk
00:13:57]} {[%emt 00:00:09]} 17. exf5 {[%clk 00:07:22]} {[%emt 00:01:07]} gxf5
{[%clk 00:13:55]} {[%emt 00:00:12]} 18. Qh5 {[%clk 00:06:39]} {[%emt 00:00:52]}
Rf6 {[%clk 00:11:58]} {[%emt 00:02:08]} 19. Bg5 {[%clk 00:05:04]} {[%emt
00:01:45]} Nxg5 {[%clk 00:11:35]} {[%emt 00:00:34]} 20. Qxg5 {[%clk 00:05:11]}
{[%emt 00:00:02]} Rg6 {[%clk 00:11:38]} {[%emt 00:00:07]} 21. Qh5 {[%clk
00:05:07]} {[%emt 00:00:14]} Rf8 {[%clk 00:11:18]} {[%emt 00:00:31]} 22. Kh1
{[%clk 00:03:59]} {[%emt 00:01:17]} Qd7 {[%clk 00:10:49]} {[%emt 00:00:39]} 23.
f4 {[%clk 00:03:09]} {[%emt 00:01:00]} e4 {[%clk 00:10:43]} {[%emt 00:00:17]}
24. Nxe4 {[%clk 00:02:56]} {[%emt 00:00:22]} fxe4 {[%clk 00:10:43]} {[%emt
00:00:10]} 25. Bxe4 {[%clk 00:03:03]} {[%emt 00:00:02]} Rh6 {[%clk 00:10:48]}
{[%emt 00:00:06]} 26. Qf3 {[%clk 00:03:02]} {[%emt 00:00:11]} d5 {[%clk
00:10:03]} {[%emt 00:00:56]} 27. cxd5 {[%clk 00:02:57]} {[%emt 00:00:14]} cxd5
{[%clk 00:10:07]} {[%emt 00:00:06]} 28. Qd3 {[%clk 00:02:20]} {[%emt 00:00:47]}
Qe6 {[%clk 00:09:28]} {[%emt 00:00:49]} 29. Bf3 {[%clk 00:01:45]} {[%emt
00:00:44]} Rff6 {[%clk 00:09:27]} {[%emt 00:00:11]} 30. Rce1 {[%clk 00:01:12]}
{[%emt 00:00:43]} Rxh3+ {[%clk 00:07:55]} {[%emt 00:01:42]} 31. Kg1 {[%clk
00:01:21]} {[%emt 00:00:02]} Qb6+ {[%clk 00:07:56]} {[%emt 00:00:09]} 32. Qe3
{[%clk 00:00:59]} {[%emt 00:00:33]} Rh1+ {[%clk 00:07:49]} {[%emt 00:00:17]} 33.
Kxh1 {[%clk 00:01:06]} {[%emt 00:00:02]} Rh6+ {[%clk 00:07:57]} {[%emt
00:00:02]} 34. Kg1 {[%clk 00:01:14]} {[%emt 00:00:02]} Bd4 {[%clk 00:08:05]}
{[%emt 00:00:02]} 35. Kf2 {[%clk 00:00:45]} {[%emt 00:00:39]} Bxe3+ {[%clk
00:08:10]} {[%emt 00:00:06]} 36. Rxe3 {[%clk 00:00:54]} {[%emt 00:00:01]} Nf5
{[%clk 00:08:19]} {[%emt 00:00:01]} 37. Ke1 {[%emt 00:00:09]} 0-1

[ePGN "0.1;DGT LiveChess/2.2.5"]

[Event "British Rapidplay Championship 2023"]
[Site "Mercure Bradford, Bankfield Hotel"]
[Date "2023.04.15"]
[Round "3.1"]
[White "Cook, Phil"]
[Black "Ghasi, Ameet K"]
[Result "0-1"]
[TimeControl "15 minutes plus 10 seconds per move"]
[WhiteElo "2126"]
[BlackElo "2631"]

1. c4 {[%clk 00:15:18]} {[%emt 00:00:01]} g6 {[%clk 00:14:42]} {[%emt
00:00:38]} 2. Nf3 {[%clk 00:15:23]} {[%emt 00:00:05]} Nf6 {[%clk 00:14:47]}
{[%emt 00:00:05]} 3. d4 {[%clk 00:15:29]} {[%emt 00:00:04]} Bg7 {[%clk
00:14:55]} {[%emt 00:00:02]} 4. g3 {[%clk 00:15:36]} {[%emt 00:00:03]} O-O
{[%clk 00:15:00]} {[%emt 00:00:05]} 5. Bg2 {[%clk 00:15:45]} {[%emt 00:00:02]}
d6 {[%clk 00:15:09]} {[%emt 00:00:01]} 6. Nc3 {[%clk 00:15:50]} {[%emt
00:00:05]} c6 {[%clk 00:15:18]} {[%emt 00:00:01]} 7. O-O {[%clk 00:15:55]}
{[%emt 00:00:04]} Qb6 {[%clk 00:15:27]} {[%emt 00:00:02]} 8. h3 {[%clk
00:15:41]} {[%emt 00:00:23]} Qa6 {[%clk 00:15:04]} {[%emt 00:00:34]} 9. b3
{[%clk 00:15:09]} {[%emt 00:00:41]} b5 {[%clk 00:14:57]} {[%emt 00:00:17]} 10.
cxb5 {[%clk 00:14:16]} {[%emt 00:01:03]} cxb5 {[%clk 00:15:02]} {[%emt
00:00:05]} 11. a4 {[%clk 00:12:25]} {[%emt 00:02:01]} b4 {[%clk 00:14:46]}
{[%emt 00:00:26]} 12. Na2 {[%clk 00:12:00]} {[%emt 00:00:35]} Qb6 {[%clk
00:13:34]} {[%emt 00:01:22]} 13. Nd2 {[%clk 00:10:31]} {[%emt 00:01:39]} d5
{[%clk 00:12:52]} {[%emt 00:00:51]} 14. Nc4 {[%clk 00:10:01]} {[%emt 00:00:40]}
dxc4 {[%clk 00:11:57]} {[%emt 00:01:06]} 15. Bxa8 {[%clk 00:10:08]} {[%emt
00:00:03]} Bxh3 {[%clk 00:10:40]} {[%emt 00:01:28]} 16. Bg2 {[%clk 00:09:29]}
{[%emt 00:00:49]} Bxg2 {[%clk 00:10:08]} {[%emt 00:00:41]} 17. Kxg2 {[%clk
00:09:37]} {[%emt 00:00:01]} c3 {[%clk 00:09:57]} {[%emt 00:00:22]} 18. f3
{[%clk 00:07:38]} {[%emt 00:02:09]} Rd8 {[%clk 00:05:09]} {[%emt 00:04:58]} 19.
Be3 {[%clk 00:06:15]} {[%emt 00:01:34]} a5 {[%clk 00:03:41]} {[%emt 00:01:37]}
20. Qd3 {[%clk 00:04:41]} {[%emt 00:01:44]} Qe6 {[%clk 00:02:39]} {[%emt
00:01:12]} 21. Nc1 {[%clk 00:04:13]} {[%emt 00:00:38]} Nd5 {[%clk 00:02:24]}
{[%emt 00:00:26]} 22. Bf2 {[%clk 00:04:03]} {[%emt 00:00:19]} f5 {[%clk
00:02:33]} {[%emt 00:00:01]} 23. Ra2 {[%clk 00:03:29]} {[%emt 00:00:45]} f4
{[%clk 00:01:54]} {[%emt 00:00:49]} 24. g4 {[%clk 00:03:05]} {[%emt 00:00:33]}
Nc6 {[%clk 00:01:41]} {[%emt 00:00:23]} 25. Rd1 {[%clk 00:02:41]} {[%emt
00:00:34]} Rc8 {[%clk 00:00:41]} {[%emt 00:01:10]} 26. Qe4 {[%clk 00:01:28]}
{[%emt 00:01:23]} Qf7 {[%clk 00:00:50]} {[%emt 00:00:01]} 27. Nd3 {[%clk
00:01:31]} {[%emt 00:00:07]} Nf6 {[%clk 00:00:59]} {[%emt 00:00:01]} 28. Ne5
{[%clk 00:01:27]} {[%emt 00:00:14]} Nxe4 {[%clk 00:01:07]} {[%emt 00:00:02]} 29.
Nxf7 {[%clk 00:01:35]} {[%emt 00:00:02]} Nxf2 {[%clk 00:01:16]} {[%emt
00:00:02]} 30. Kxf2 {[%clk 00:01:37]} {[%emt 00:00:08]} Kxf7 {[%clk 00:01:25]}
{[%emt 00:00:01]} 31. d5 {[%clk 00:01:43]} {[%emt 00:00:04]} Nd4 {[%clk
00:01:34]} 32. e4 {[%clk 00:00:57]} {[%emt 00:00:55]} fxe3+ {[%clk 00:01:41]}
{[%emt 00:00:03]} 33. Kxe3 {[%clk 00:01:02]} {[%emt 00:00:04]} Nxb3 {[%clk
00:01:49]} {[%emt 00:00:03]} 34. Kd3 {[%clk 00:00:51]} {[%emt 00:00:21]} Nc5+
{[%clk 00:01:55]} {[%emt 00:00:05]} 35. Kc4 {[%clk 00:00:34]} {[%emt 00:00:27]}
b3 {[%clk 00:02:03]} {[%emt 00:00:02]} 36. Rh2 {[%clk 00:00:42]} {[%emt
00:00:02]} c2 {[%clk 00:02:07]} {[%emt 00:00:05]} 37. Re1 {[%clk 00:00:44]}
{[%emt 00:00:09]} Nd7+ {[%clk 00:01:56]} {[%emt 00:00:19]} 38. Kxb3 {[%clk
00:00:47]} {[%emt 00:00:08]} c1=Q {[%clk 00:02:01]} {[%emt 00:00:05]} 39. Rxc1
{[%clk 00:00:51]} {[%emt 00:00:06]} Rxc1 {[%clk 00:02:09]} {[%emt 00:00:02]}
0-1

[Event "British Rapidplay Championship 2023"]
[Site "Mercure Bradford, Bankfield Hotel"]
[Date "2023.04.15"]
[Round "3.2"]
[White "Gormally, Daniel W"]
[Black "Smith, Andrew P"]
[Result "1-0"]
[TimeControl "15 minutes plus 10 seconds per move"]
[WhiteElo "2570"]
[BlackElo "2125"]

1. d4 {[%clk 00:15:18]} {[%emt 00:00:01]} Nf6 {[%clk 00:15:15]} {[%emt
00:00:05]} 2. Nf3 {[%clk 00:15:23]} {[%emt 00:00:06]} c5 {[%clk 00:15:16]}
{[%emt 00:00:09]} 3. d5 {[%clk 00:15:30]} {[%emt 00:00:03]} e6 {[%clk
00:15:20]} {[%emt 00:00:05]} 4. c4 {[%clk 00:15:38]} {[%emt 00:00:02]} exd5
{[%clk 00:15:25]} {[%emt 00:00:06]} 5. cxd5 {[%clk 00:15:46]} {[%emt 00:00:01]}
d6 {[%clk 00:15:29]} {[%emt 00:00:05]} 6. Nc3 {[%clk 00:15:52]} {[%emt
00:00:05]} g6 {[%clk 00:15:34]} {[%emt 00:00:05]} 7. e4 {[%clk 00:16:01]}
{[%emt 00:00:01]} Bg7 {[%clk 00:15:38]} {[%emt 00:00:07]} 8. h3 {[%clk
00:16:09]} {[%emt 00:00:02]} O-O {[%clk 00:15:33]} {[%emt 00:00:15]} 9. Bd3
{[%clk 00:16:17]} a6 {[%clk 00:15:08]} {[%emt 00:00:35]} 10. a4 {[%clk
00:16:03]} {[%emt 00:00:25]} Re8 {[%clk 00:15:11]} {[%emt 00:00:06]} 11. O-O
{[%clk 00:16:11]} {[%emt 00:00:03]} Nh5 {[%clk 00:14:59]} {[%emt 00:00:22]} 12.
Bg5 {[%clk 00:15:47]} {[%emt 00:00:34]} Bf6 {[%clk 00:14:52]} {[%emt 00:00:17]}
13. Bh6 {[%clk 00:15:51]} {[%emt 00:00:06]} Nd7 {[%clk 00:14:34]} {[%emt
00:00:27]} 14. Qd2 {[%clk 00:15:53]} {[%emt 00:00:08]} Rb8 {[%clk 00:14:12]}
{[%emt 00:00:33]} 15. Rae1 {[%clk 00:15:00]} {[%emt 00:01:03]} Ne5 {[%clk
00:11:31]} {[%emt 00:02:51]} 16. Be2 {[%clk 00:15:08]} {[%emt 00:00:01]} Nxf3+
{[%clk 00:10:32]} {[%emt 00:01:09]} 17. Bxf3 {[%clk 00:15:17]} {[%emt
00:00:01]} Ng7 {[%clk 00:10:40]} {[%emt 00:00:02]} 18. Bd1 {[%clk 00:13:28]}
{[%emt 00:01:59]} b5 {[%clk 00:10:35]} {[%emt 00:00:16]} 19. axb5 {[%clk
00:13:37]} {[%emt 00:00:01]} axb5 {[%clk 00:10:43]} {[%emt 00:00:01]} 20. b4
{[%clk 00:13:42]} {[%emt 00:00:05]} cxb4 {[%clk 00:08:53]} {[%emt 00:02:01]} 21.
Na2 {[%clk 00:13:51]} Qa5 {[%clk 00:08:42]} {[%emt 00:00:21]} 22. Nxb4 {[%clk
00:13:46]} {[%emt 00:00:15]} Bd7 {[%clk 00:07:58]} {[%emt 00:00:53]} 23. Bg4
{[%clk 00:13:55]} {[%emt 00:00:01]} Bxg4 {[%clk 00:05:47]} {[%emt 00:02:22]} 24.
hxg4 {[%clk 00:14:04]} {[%emt 00:00:01]} Rbc8 {[%clk 00:05:48]} {[%emt
00:00:09]} 25. Nc6 {[%clk 00:14:12]} {[%emt 00:00:01]} Bc3 {[%clk 00:05:34]}
{[%emt 00:00:24]} 26. Nxa5 {[%clk 00:14:11]} {[%emt 00:00:12]} Bf6 {[%emt
00:00:28]} 1-0